fUST/lending_fUST_20250716
["ID","MTS","AMOUNT","RATE_DAILY","PERIOD"]
[372334862,1752595256108,-195.79208783,0.0001962,2]
[372334863,1752595256131,-1798.0969171,0.00019621,2]
[372334864,1752595256155,-1200.0,0.0001972,2]
[372334865,1752595265039,300.0,0.0001972,2]
[372334866,1752595277163,1093.0,0.0001972,2]
[372334867,1752595279212,195.79208783,0.00019621,2]
[372334869,1752595306435,-5217.31890724,0.00019721,2]
[372334881,1752595467109,160.238894,0.00013699,2]
[372334882,1752595534103,-300.0,0.00019029,2]
[372334883,1752595534126,-286.0,0.00019029,2]
[372334884,1752595534147,-300.0,0.00019029,2]
[372334885,1752595534170,-216.88146721,0.00019029,2]
[372334886,1752595593458,-983.11853279,0.00019029,2]
[372334887,1752595593492,-300.0,0.00019029,2]
[372334888,1752595593524,-1200.0,0.00019029,2]
[372334889,1752595593556,-20266.6108788,0.0001903,2]
[372334890,1752595593587,-434.88617682,0.00019178,2]
[372334891,1752595593819,-25.11382318,0.00019178,2]
[372334892,1752595593851,-460.0,0.00019452,2]
[372334893,1752595593882,-4782.68109276,0.00019721,2]
[372334894,1752595593914,-500.0,0.00019721,2]
[372334895,1752595593946,-460.0,0.00019726,2]
[372334896,1752595593977,-196.14793385,0.00019938,2]
[372334897,1752595594007,-500.0,0.0002,14]
[372334898,1752595594036,-641.28,0.0002,14]
[372334899,1752595594067,-493.38,0.0002,2]
[372334900,1752595594097,-160.0,0.00020022,2]
[372334901,1752595594127,-13330.9289504,0.00020027,2]
[372334902,1752595594157,-460.0,0.00020038,2]
[372334903,1752595594187,-460.0,0.00020038,2]
[372334904,1752595594219,-460.0,0.00020038,2]
[372334905,1752595594409,-831.71,0.00020038,2]
[372334906,1752595594441,-460.0,0.00020038,2]
[372334907,1752595594474,-460.0,0.00020038,2]
[372334908,1752595594506,-949.66,0.00020038,2]
[372334909,1752595594537,-460.0,0.00020038,2]
[372334910,1752595594568,-285.11,0.00020038,2]
[372334911,1752595594599,-460.0,0.00020038,2]
[372334912,1752595594630,-460.0,0.00020038,2]
[372334913,1752595594662,-460.0,0.00020038,2]
[372334914,1752595594692,-460.0,0.00020038,2]
[372334915,1752595594724,-460.0,0.00020038,2]
[372334916,1752595594755,-460.0,0.00020038,2]
[372334917,1752595594787,-500.0,0.00020038,2]
[372334918,1752595594817,-460.0,0.00020038,2]
[372334919,1752595594846,-247.21810094,0.00020038,2]
[372334920,1752595594877,-392.51,0.00020038,2]
[372334921,1752595594909,-460.0,0.00020038,2]
[372334922,1752595594938,-5225.50542082,0.00020039,2]
[372334923,1752595595462,-19410.91795648,0.00020039,2]
[372334924,1752595595492,-536.92,0.00020093,2]
[372334925,1752595595524,-1157.55,0.00020093,2]
[372334926,1752595595555,-460.0,0.00020093,2]
[372334927,1752595595587,-460.0,0.00020093,2]
[372334928,1752595595733,-460.0,0.00020093,2]
[372334929,1752595595762,-180.653974,0.00020097,2]
[372334930,1752595595793,-460.0,0.00020312,2]
[372334931,1752595595948,-831.71,0.00020312,2]
[372334932,1752595595979,-250.93552101,0.00020312,2]
[372334933,1752595596011,-460.0,0.00020312,2]
[372334934,1752595596043,-949.66,0.00020312,2]
[372334935,1752595596075,-460.0,0.00020312,2]
[372334936,1752595596108,-460.0,0.00020312,2]
[372334937,1752595596138,-460.0,0.00020312,2]
[372334938,1752595596168,-460.0,0.00020312,2]
[372334939,1752595596199,-460.0,0.00020312,2]
[372334940,1752595596231,-562.05154443,0.00020312,2]
[372334941,1752595596263,-1157.55,0.00020367,2]
[372334942,1752595596293,-460.0,0.00020367,2]
[372334943,1752595596329,-460.0,0.00020367,2]
[372334944,1752595596360,-460.0,0.00020367,2]
[372334945,1752595596394,-460.0,0.00020586,2]
[372334946,1752595596431,-831.71,0.00020586,2]
[372334947,1752595596464,-460.0,0.00020586,2]
[372334948,1752595596497,-949.66,0.00020586,2]
[372334949,1752595596528,-460.0,0.00020586,2]
[372334950,1752595596559,-460.0,0.00020586,2]
[372334951,1752595596590,-460.0,0.00020586,2]
[372334952,1752595596621,-445.58,0.00020586,2]
[372334953,1752595596651,-460.0,0.00020586,2]
[372334954,1752595596682,-2944.0,0.0002063,10]
[372334955,1752595596713,-1157.55,0.00020641,2]
[372334956,1752595596743,-531.90489473,0.00020641,2]
[372334957,1752595596774,-460.0,0.00020641,2]
[372334958,1752595596805,-460.0,0.00020641,2]
[372334959,1752595596836,-196.14793381,0.00020704,2]
[372334960,1752595596867,-420.0,0.00020741,2]
[372334961,1752595596897,-247.967,0.00020828,2]
[372334962,1752595596930,-228.0,0.00020842,2]
[372334963,1752595596961,-460.0,0.0002086,2]
[372334964,1752595596992,-831.71,0.0002086,2]
[372334965,1752595597030,-460.0,0.0002086,2]
[372334966,1752595597062,-949.66,0.0002086,2]
[372334967,1752595597093,-460.0,0.0002086,2]
[372334968,1752595597123,-460.0,0.0002086,2]
[372334969,1752595597530,-500.0,0.00020038,2]
[372334970,1752595597563,-500.0,0.00020038,2]
[372334971,1752595597594,-500.0,0.00020038,2]
[372334972,1752595597631,-500.0,0.00020038,2]
[372334973,1752595597672,-500.0,0.00020038,2]
[372334974,1752595597704,-500.0,0.00020038,2]
[372334975,1752595597735,-500.0,0.00020038,2]
[372334976,1752595597765,-500.0,0.00020038,2]
[372334977,1752595597796,-500.0,0.00020038,2]
[372334978,1752595597827,-460.0,0.0002086,2]
[372334979,1752595597855,-485.32,0.0002086,2]
[372334980,1752595597884,-460.0,0.00020892,2]
[372334981,1752595597914,-460.0,0.00020892,2]
[372334982,1752595597943,-460.0,0.00020892,2]
[372334983,1752595598057,-460.0,0.00020892,2]
[372334984,1752595598109,-460.0,0.00020892,2]
[372334985,1752595598140,-162.98,0.00020892,2]
[372334986,1752595598173,-460.0,0.00020892,2]
[372334987,1752595598203,-460.0,0.00020892,2]
[372334988,1752595598234,-460.0,0.00020892,2]
[372334989,1752595598264,-460.0,0.00020892,2]
[372334990,1752595598294,-460.0,0.00020892,2]
[372334991,1752595598326,-460.0,0.00020892,2]
[372334992,1752595598359,-251.28663926,0.00020892,2]
[372334993,1752595598390,-580.53,0.00020892,2]
[372334994,1752595598422,-332.0019003,0.00020892,2]
[372334995,1752595598451,-525.51022752,0.00020914,2]
[372334996,1752595598484,-399.21,0.00020914,2]
[372334997,1752595598513,-838.84061749,0.00020914,2]
[372334998,1752595598543,-160.0,0.00020914,2]
[372334999,1752595598573,-160.0,0.00020915,2]
[372335000,1752595598602,-160.0,0.00020915,2]
[372335001,1752595598637,-160.0,0.00020915,2]
[372335002,1752595598668,-230.76969291,0.00020915,2]
[372335003,1752595598699,-468.75,0.00020915,2]
[372335004,1752595598730,-1157.55,0.00020915,2]
[372335005,1752595598760,-460.0,0.00020915,2]
[372335006,1752595598790,-460.0,0.00020915,2]
[372335007,1752595598821,-460.0,0.00021134,2]
[372335008,1752595598851,-831.71,0.00021134,2]
[372335009,1752595598882,-460.0,0.00021134,2]
[372335010,1752595598913,-949.66,0.00021134,2]
[372335011,1752595598942,-314.89,0.00021134,2]
[372335012,1752595598974,-460.0,0.00021134,2]
[372335013,1752595599005,-460.0,0.00021134,2]
[372335014,1752595599035,-460.0,0.00021161,2]
[372335015,1752595599065,-947.94,0.00021162,2]
[372335016,1752595599095,-460.0,0.00021162,2]
[372335017,1752595599340,-500.0,0.00020038,2]
[372335018,1752595599371,-500.0,0.00020038,2]
[372335019,1752595599403,-500.0,0.00020038,2]
[372335020,1752595599436,-1005.82,0.00021162,2]
[372335021,1752595599467,-460.0,0.00021162,2]
[372335022,1752595599496,-460.0,0.00021163,2]
[372335023,1752595599526,-460.0,0.00021163,2]
[372335024,1752595599557,-460.0,0.00021163,2]
[372335025,1752595599586,-460.0,0.00021163,2]
[372335026,1752595599615,-460.0,0.00021163,2]
[372335027,1752595599645,-460.0,0.00021163,2]
[372335028,1752595599675,-460.0,0.00021163,2]
[372335029,1752595599705,-460.0,0.00021163,2]
[372335030,1752595599735,-460.0,0.00021163,2]
[372335031,1752595599766,-460.0,0.00021163,2]
[372335032,1752595599795,-572.6,0.00021163,2]
[372335033,1752595599826,-471.21,0.00021163,2]
[372335034,1752595599861,-426.3400739,0.00021163,2]
[372335035,1752595599892,-460.0,0.00021163,2]
[372335036,1752595599925,-460.0,0.00021163,2]
[372335037,1752595599956,-460.0,0.00021163,2]
[372335038,1752595599987,-460.0,0.00021163,2]
[372335039,1752595600016,-556.61225776,0.00021164,2]
[372335040,1752595600046,-460.0,0.00021164,2]
[372335041,1752595600076,-460.0,0.00021164,2]
[372335042,1752595600106,-460.0,0.00021164,2]
[372335043,1752595600135,-550.42758763,0.00021166,2]
[372335044,1752595600168,-464.899,0.00021166,2]
[372335045,1752595600199,-460.0,0.00021166,2]
[372335046,1752595600228,-460.0,0.00021166,2]
[372335047,1752595600259,-460.0,0.00021166,2]
[372335048,1752595600290,-460.0,0.00021166,2]
[372335049,1752595600323,-460.0,0.00021166,2]
[372335050,1752595600355,-460.0,0.00021166,2]
[372335051,1752595600384,-500.0,0.00021173,2]
[372335052,1752595600418,-1157.55,0.00021189,2]
[372335053,1752595600449,-460.0,0.00021189,2]
[372335054,1752595600481,-460.0,0.00021189,2]
[372335055,1752595600511,-160.0,0.0002132,2]
[372335056,1752595600542,-460.0,0.00021408,2]
[372335057,1752595600573,-831.71,0.00021408,2]
[372335058,1752595600603,-460.0,0.00021408,2]
[372335059,1752595600635,-949.66,0.00021408,2]
[372335060,1752595600667,-460.0,0.00021408,2]
[372335061,1752595600699,-460.0,0.00021408,2]
[372335062,1752595600730,-40.68716142,0.00021427,2]
[372335063,1752595600795,-500.0,0.00020038,2]
[372335064,1752595600827,-500.0,0.00020038,2]
[372335065,1752595600859,-504.19278677,0.00020038,2]
[372335066,1752595600891,-500.0,0.00020038,2]
[372335067,1752595601043,-500.0,0.00020038,2]
[372335068,1752595601073,-419.31283858,0.00021427,2]
[372335069,1752595601103,-460.0,0.00021427,2]
[372335070,1752595601133,-460.0,0.00021427,2]
[372335071,1752595601165,-445.7190445,0.00021427,2]
[372335072,1752595601195,-460.0,0.00021427,2]
[372335073,1752595601225,-460.0,0.00021435,2]
[372335074,1752595601257,-947.94,0.00021436,2]
[372335075,1752595601288,-460.0,0.00021436,2]
[372335076,1752595601321,-1005.82,0.00021436,2]
[372335077,1752595601352,-460.0,0.00021436,2]
[372335078,1752595601384,-183.568206,0.00021437,2]
[372335079,1752595601419,-460.0,0.00021437,2]
[372335080,1752595601450,-460.0,0.00021437,2]
[372335081,1752595601480,-213.48437101,0.00021438,2]
[372335082,1752595601511,-460.0,0.0002144,2]
[372335083,1752595601540,-373.37,0.0002144,2]
[372335084,1752595601569,-460.0,0.0002144,2]
[372335085,1752595601599,-304.84,0.0002144,2]
[372335086,1752595601630,-295.72923246,0.0002144,2]
[372335087,1752595601663,-1157.55,0.00021463,2]
[372335088,1752595601693,-460.0,0.00021463,2]
[372335089,1752595601724,-460.0,0.00021463,2]
[372335090,1752595601753,-196.14793381,0.0002147,2]
[372335091,1752595601782,-219.95747506,0.00021682,2]
[372335092,1752595601812,-460.0,0.00021682,2]
[372335093,1752595601842,-831.71,0.00021682,2]
[372335094,1752595601872,-460.0,0.00021682,2]
[372335095,1752595601903,-949.66,0.00021682,2]
[372335096,1752595601935,-460.0,0.00021682,2]
[372335097,1752595601966,-460.0,0.00021682,2]
[372335098,1752595601995,-316.89227968,0.00021701,2]
[372335099,1752595602025,-460.0,0.00021701,2]
[372335100,1752595602054,-460.0,0.00021709,2]
[372335101,1752595602084,-947.94,0.0002171,2]
[372335102,1752595602115,-460.0,0.0002171,2]
[372335103,1752595602145,-1005.82,0.0002171,2]
[372335104,1752595602176,-460.0,0.0002171,2]
[372335105,1752595602205,-460.0,0.00021711,2]
[372335106,1752595602235,-152.79,0.00021711,2]
[372335107,1752595602263,-284.7738422,0.00021712,2]
[372335108,1752595602293,-199.98,0.00021714,2]
[372335109,1752595602328,-460.0,0.00021714,2]
[372335110,1752595602834,-500.0,0.00020038,2]
[372335111,1752595602866,-500.0,0.00020038,2]
[372335112,1752595602899,-500.0,0.00020038,2]
[372335113,1752595602933,-500.0,0.00020038,2]
[372335114,1752595602964,-500.0,0.00020038,2]
[372335115,1752595602994,-1157.55,0.00021736,2]
[372335116,1752595603025,-460.0,0.00021736,2]
[372335117,1752595603055,-460.0,0.00021736,2]
[372335118,1752595603084,-260.0,0.00021868,2]
[372335119,1752595603114,-600.41,0.0002189,3]
[372335120,1752595603145,-3000.0,0.000219,2]
[372335121,1752595603175,-164.87563185,0.00021909,2]
[372335122,1752595603206,-5307.041601,0.0002191,2]
[372335123,1752595603235,-200.13,0.00021946,3]
[372335124,1752595603266,-392.27,0.00021956,2]
[372335125,1752595603298,-831.71,0.00021956,2]
[372335126,1752595603430,-460.0,0.00021956,2]
[372335127,1752595603463,-949.66,0.00021956,2]
[372335128,1752595603495,-460.0,0.00021956,2]
[372335129,1752595603527,-460.0,0.00021956,2]
[372335130,1752595603557,-460.0,0.00021983,2]
[372335131,1752595603587,-947.94,0.00021984,2]
[372335132,1752595603617,-460.0,0.00021984,2]
[372335133,1752595603647,-1005.82,0.00021984,2]
[372335134,1752595603679,-556.49940902,0.00021984,2]
[372335135,1752595603710,-460.0,0.00021985,2]
[372335136,1752595603742,-354.18,0.00021988,2]
[372335137,1752595603771,-1237.41171626,0.00022,7]
[372335138,1752595603923,-500.0,0.00020038,2]
[372335139,1752595603955,-500.0,0.00020038,2]
[372335140,1752595603985,-103.34828374,0.00022,7]
[372335141,1752595604014,-937.0,0.00022,2]
[372335142,1752595604045,-937.0,0.00022,2]
[372335143,1752595604075,-937.0,0.00022,2]
[372335144,1752595604104,-937.0,0.00022,2]
[372335145,1752595604134,-937.0,0.00022,2]
[372335146,1752595604166,-937.0,0.00022,2]
[372335147,1752595604196,-937.0,0.00022,2]
[372335148,1752595604226,-937.0,0.00022,2]
[372335149,1752595604255,-937.0,0.00022,2]
[372335150,1752595604285,-937.0,0.00022,2]
[372335151,1752595604317,-169.0,0.00022,2]
[372335152,1752595604350,-1157.55,0.0002201,2]
[372335153,1752595604383,-460.0,0.0002201,2]
[372335154,1752595604418,-460.0,0.0002201,2]
[372335155,1752595604450,-831.71,0.0002223,2]
[372335156,1752595604481,-463.78754198,0.0002223,2]
[372335157,1752595604514,-949.66,0.0002223,2]
[372335158,1752595604545,-460.0,0.0002223,2]
[372335159,1752595604577,-460.0,0.0002223,2]
[372335160,1752595604610,-196.14793381,0.00022236,2]
[372335161,1752595604640,-1000.0,0.00022241,3]
[372335162,1752595604672,-207.4,0.00022247,2]
[372335163,1752595604702,-460.0,0.00022257,2]
[372335164,1752595604734,-947.94,0.00022258,2]
[372335165,1752595604765,-460.0,0.00022258,2]
[372335166,1752595604796,-1005.82,0.00022258,2]
[372335167,1752595604826,-460.0,0.00022259,2]
[372335168,1752595604857,-1157.55,0.00022284,2]
[372335169,1752595604889,-460.0,0.00022284,2]
[372335170,1752595604922,-460.0,0.00022284,2]
[372335171,1752595625095,-425.57298626,0.00020038,2]
[372335172,1752595631466,-300.0,0.00020037,2]
[372335173,1752595631489,-74.42701374,0.00020038,2]
[372335174,1752595631514,-500.0,0.00020038,2]
[372335175,1752595631537,-500.0,0.00020038,2]
[372335176,1752595631564,-500.0,0.00020038,2]
[372335177,1752595631587,-500.0,0.00020038,2]
[372335178,1752595631611,-500.0,0.00020038,2]
[372335179,1752595631636,-500.0,0.00020038,2]
[372335180,1752595631660,-500.0,0.00020038,2]
[372335181,1752595631687,-500.0,0.00020038,2]
[372335182,1752595631712,-500.0,0.00020038,2]
[372335183,1752595631736,-500.0,0.00020038,2]
[372335184,1752595631759,-333.17767504,0.00020038,2]
[372335185,1752595631782,-500.0,0.00020038,2]
[372335186,1752595631808,-237.49170809,0.00020038,2]
[372335187,1752595631833,-500.0,0.00020038,2]
[372335188,1752595631857,-500.0,0.00020038,2]
[372335189,1752595631882,-500.0,0.00020038,2]
[372335190,1752595631907,-500.0,0.00020038,2]
[372335191,1752595631931,-500.0,0.00020038,2]
[372335192,1752595631957,-500.0,0.00020038,2]
[372335193,1752595631983,-500.0,0.00020038,2]
[372335194,1752595632007,-500.0,0.00020038,2]
[372335195,1752595632031,-500.0,0.00020038,2]
[372335196,1752595632055,-500.0,0.00020038,2]
[372335197,1752595632079,-500.0,0.00020038,2]
[372335198,1752595632103,-500.0,0.00020038,2]
[372335199,1752595632128,-500.0,0.00020038,2]
[372335200,1752595632152,-500.0,0.00020038,2]
[372335201,1752595632176,-500.0,0.00020038,2]
[372335202,1752595632200,-500.0,0.00020038,2]
[372335203,1752595632224,-500.0,0.00020038,2]
[372335204,1752595632247,-600.0,0.00020038,2]
[372335205,1752595632272,-261.11951162,0.00020038,2]
[372335206,1752595641085,-238.88048838,0.00020038,2]
[372335207,1752595641109,-500.0,0.00020038,2]
[372335208,1752595641132,-500.0,0.00020038,2]
[372335209,1752595641154,-500.0,0.00020038,2]
[372335210,1752595641178,-500.0,0.00020038,2]
[372335211,1752595641202,-500.0,0.00020038,2]
[372335212,1752595641226,-500.0,0.00020038,2]
[372335213,1752595641250,-273.74917081,0.00020038,2]
[372335214,1752595641272,-940.04,0.00020093,2]
[372335215,1752595641295,-940.04,0.00020367,2]
[372335216,1752595641317,-940.04,0.00020641,2]
[372335217,1752595641341,-940.04,0.00020915,2]
[372335218,1752595641365,-527.55541871,0.00021189,2]
[372335220,1752595685865,-519.82,0.00019178,2]
[372335221,1752595685899,-519.82,0.00019452,2]
[372335222,1752595685932,-519.82,0.00019726,2]
[372335223,1752595685965,-519.82,0.0002,2]
[372335224,1752595686003,-595.3,0.00020038,2]
[372335225,1752595686037,-519.82,0.00020273,2]
[372335226,1752595686071,-595.3,0.00020312,2]
[372335227,1752595686107,-519.82,0.00020547,2]
[372335228,1752595686140,-595.3,0.00020586,2]
[372335229,1752595686173,-519.82,0.00020821,2]
[372335230,1752595686205,-595.3,0.0002086,2]
[372335231,1752595686241,-723.47,0.00020892,2]
[372335232,1752595686272,-160.0,0.00020914,2]
[372335233,1752595686303,-525.51022752,0.00020914,2]
[372335234,1752595686340,-519.82,0.00021095,2]
[372335235,1752595686375,-595.3,0.00021134,2]
[372335236,1752595686410,-723.47,0.00021166,2]
[372335237,1752595686443,-300.0,0.00021188,2]
[372335238,1752595686476,-412.48458129,0.00021189,2]
[372335239,1752595686510,-519.82,0.00021369,2]
[372335240,1752595686696,-595.3,0.00021408,2]
[372335241,1752595686732,-723.47,0.0002144,2]
[372335242,1752595686768,-940.04,0.00021463,2]
[372335243,1752595686802,-519.82,0.00021643,2]
[372335244,1752595686837,-595.3,0.00021682,2]
[372335245,1752595686869,-189.84922814,0.00021714,2]
[372335246,1752595686905,-723.47,0.00021714,2]
[372335247,1752595686939,-940.04,0.00021736,2]
[372335248,1752595686974,-519.82,0.00021917,2]
[372335249,1752595687009,-595.3,0.00021956,2]
[372335250,1752595687043,-723.47,0.00021988,2]
[372335251,1752595687075,-169.0,0.00022,2]
[372335252,1752595687110,-940.04,0.0002201,2]
[372335253,1752595687143,-519.82,0.00022191,2]
[372335254,1752595687181,-595.3,0.0002223,2]
[372335255,1752595687216,-723.47,0.00022262,2]
[372335256,1752595687251,-366.44654372,0.00022284,2]
[372335257,1752595687536,-573.59345628,0.00022284,2]
[372335258,1752595687569,-2000.0,0.00022289,3]
[372335259,1752595687603,-3000.0,0.00022362,3]
[372335260,1752595687635,-1452.24562723,0.00022404,2]
[372335261,1752595687667,-360.0,0.00022416,2]
[372335262,1752595687701,-519.82,0.00022465,2]
[372335263,1752595687733,-400.26,0.0002248,3]
[372335264,1752595687765,-1419.75,0.0002248,10]
[372335265,1752595688184,-326.39071524,0.00022077,2]
[372335266,1752595688215,-4000.0,0.00022482,3]
[372335267,1752595688250,-94.00507632,0.00022482,3]
[372335268,1752595688474,-8840.79158312,0.00022482,3]
[372335269,1752595689147,-151.0,0.00022284,2]
[372335270,1752595689157,-3651.92183376,0.00022482,3]
[372335271,1752595689167,-160.0,0.00022482,3]
[372335272,1752595689177,-193.77707188,0.00022489,2]
[372335273,1752595689187,-500.0,0.00022489,2]
[372335274,1752595689197,-500.0,0.00022489,2]
[372335275,1752595689206,-500.0,0.00022489,2]
[372335276,1752595689216,-500.0,0.00022489,2]
[372335277,1752595689225,-500.0,0.00022489,2]
[372335278,1752595689235,-500.0,0.00022489,2]
[372335279,1752595689245,-500.0,0.00022489,2]
[372335280,1752595689254,-500.0,0.00022489,2]
[372335281,1752595689264,-500.0,0.00022489,2]
[372335282,1752595689274,-500.0,0.00022489,2]
[372335283,1752595689284,-500.0,0.00022489,2]
[372335284,1752595689294,-500.0,0.00022489,2]
[372335285,1752595689304,-200.87157324,0.00022489,2]
[372335286,1752595689314,-1286.99577626,0.0002249,7]
[372335287,1752595689366,-21333.505,0.0002249,7]
[372335288,1752595689382,-21333.505,0.0002249,7]
[372335289,1752595689582,-2216.7,0.0002248,10]
[372335290,1752595689624,-16900.105,0.0002249,7]
[372335291,1752595690018,-21333.505,0.0002249,7]
[372335292,1752595705805,-460.0,0.00019178,2]
[372335293,1752595705839,-460.0,0.00019452,2]
[372335294,1752595705874,-460.0,0.00019726,2]
[372335295,1752595705907,-460.0,0.0002,2]
[372335296,1752595705940,-460.0,0.00020093,2]
[372335297,1752595705975,-460.0,0.00020273,2]
[372335298,1752595706009,-460.0,0.00020367,2]
[372335299,1752595706040,-460.0,0.00020641,2]
[372335300,1752595706074,-460.0,0.00020892,2]
[372335301,1752595706106,-160.0,0.00020914,2]
[372335302,1752595706138,-460.0,0.00020915,2]
[372335303,1752595706170,-460.0,0.00021166,2]
[372335304,1752595706205,-460.0,0.0002144,2]
[372335305,1752595706238,-214.3,0.00021714,2]
[372335306,1752595706270,-396.54125519,0.000224,2]
[372335307,1752595706301,-1847.25,0.0002248,10]
[372335308,1752595706332,-228.69845627,0.00022489,2]
[372335309,1752595706628,-460.0,0.00021189,2]
[372335310,1752595706639,-363.36,0.00021463,2]
[372335311,1752595706649,-3776.56557708,0.0002249,7]
[372335312,1752595745576,-245.40422093,0.00020038,2]
[372335313,1752595745608,-170.0,0.00022,2]
[372335314,1752595745640,-161.50521589,0.000224,2]
[372335315,1752595745672,-1539.38,0.0002248,10]
[372335316,1752595745704,-663.50512636,0.0002248,10]
[372335317,1752595745794,-619.31487364,0.0002248,10]
[372335318,1752595754609,-1069.01,0.0002248,10]
[372335319,1752595754647,-300.0,0.00022488,2]
[372335320,1752595754687,-500.0,0.00022489,2]
[372335321,1752595754728,-500.0,0.00022489,2]
[372335322,1752595754768,-446.41927867,0.00022489,2]
[372335323,1752595754808,-48.04544266,0.00022489,2]
[372335324,1752595754922,-451.95455734,0.00022489,2]
[372335325,1752595754962,-197.0832412,0.00022489,2]
[372335326,1752595755000,-5784.7375176,0.0002249,7]
[372335327,1752595755324,-6178.904,0.0002249,7]
[372335328,1752595755627,-6178.904,0.0002249,7]
[372335329,1752595755920,-6178.904,0.0002249,7]
[372335330,1752595756071,-6178.904,0.0002249,7]
[372335331,1752595756780,-6178.904,0.0002249,7]
[372335332,1752595758635,-6178.904,0.0002249,7]
[372335333,1752595758840,-6178.904,0.0002249,7]
[372335334,1752595760281,460.0,0.00020892,2]
[372335335,1752595760544,460.0,0.00021166,2]
[372335336,1752595760813,353.5,0.0002144,2]
[372335337,1752595761627,180.653974,0.00021582,2]
[372335339,1752595816602,460.0,0.00020038,2]
[372335340,1752595816874,467.72299978,0.00020312,2]
[372335342,1752595830031,170.0,0.00022,2]
[372335348,1752595832982,-207.4,0.00022476,2]
[372335349,1752595832992,-525.51022752,0.00022489,2]
[372335350,1752595833002,-160.0,0.00022489,2]
[372335351,1752595833012,-300.0,0.00022489,2]
[372335352,1752595833022,-850.9552901,0.0002249,7]
[372335353,1752595833039,-590.40961051,0.0002249,7]
[372335354,1752595833051,-13014.31,0.0002249,7]
[372335355,1752595833063,-3797.73181556,0.0002249,7]
[372335488,1752595839455,-1756.24621206,0.0002249,7]
[372335490,1752595839469,-61066.50828606,0.0002249,7]
[372335492,1752595839479,-1206.68,0.000225,7]
[372335494,1752595839488,-595.3,0.00022504,2]
[372335496,1752595839497,-460.0,0.00022533,2]
[372335498,1752595839507,-723.47,0.00022536,2]
[372335500,1752595839516,-2455.38961826,0.00022546,3]
[372335593,1752595841014,-479.93791128,0.00022546,3]
[372335594,1752595841026,-1116.32856503,0.00022546,3]
[372335595,1752595841143,-1452.29218338,0.00022546,3]
[372335616,1752595844676,-68.62422339,0.00022546,3]
[372335617,1752595844688,-427.42749866,0.00022546,3]
[372335618,1752595844698,-940.04,0.00022558,2]
[372335619,1752595844707,-609.12,0.000226,7]
[372335620,1752595844716,-302.09942794,0.0002263,2]
[372335621,1752595844726,-890.84,0.00022631,10]
[372335622,1752595844735,-742.37,0.00022631,10]
[372335623,1752595844744,-7000.0,0.00022641,3]
[372335624,1752595844753,-9023.43972325,0.000227,7]
[372335694,1752595847047,-7325.97958641,0.00022458,2]
[372335695,1752595847057,-3030.36027675,0.000227,7]
[372335696,1752595847066,-857.4953208,0.000227,2]
[372335697,1752595847076,-519.82,0.00022739,2]
[372335698,1752595847085,-4000.0,0.00022742,3]
[372335699,1752595847094,-595.3,0.00022778,2]
[372335700,1752595847103,-618.64,0.0002279,10]